Workbook

Sheet Лист1 (hidden)
A1: ЦЕЛЕВЫЕ ГРУППЫ
A3: Код специальности (профессии) | B3: Наименование специальности (профессии) | C3: Курс | D3: ГРУППА | E3: Кол-во | F3: КАЗ | G3: КВЗ | H3: КМПО
A5: 15.02.16 | B5: Технология машиностроения | C5: 1 | D5: 24Т1 | E5: 25
C6: 1 | D6: 24Т2 | E6: 25
C7: 1 | D7: 24Т3 | E7: 30
C8: 1 | D8: 24Д | E8: 24 | H8: 23
C9: 1 | D9: 24Л1 | E9: 24
C10: 1 | D10: 24Л2 | E10: 27
C11: 1 | D11: 24К1 | E11: 25
C12: 1 | D12: 24К2 | E12: 26
C13: 1 | D13: 24И1 | E13: 25
C14: 1 | D14: 24И2 | E14: 25
C15: 1 | D15: 24А1 | E15: 25
A16: 24.02.02 | B16: Производство авиационных двигателей | C16: 1 | D16: 24А2 | E16: 28
C17: 1 | D17: 2410 | E17: 25
C18: 1 | D18: 2432.1 | E18: 30 | F18: 5
C19: 1 | D19: 2432.2 | E19: 30 | F19: 5
A20: 25.02.06 | B20: Производство и обслуживание авиационной техники | C20: 1 | D20: 2432.3 | E20: 30 | F20: 30
C21: 1 | D21: 2435 | E21: 25
C22: 1 | D22: 2405 | E22: 25
C23: 1 | D23: 2401.1 | E23: 26 | H23: 1
C24: 1 | D24: 2401.2 | E24: 25
A25: 24.02.02 | B25: Производство летательных аппаратов | C25: 1 | D25: 2401.3 | E25: 25 | F25: 25
C26: 1 | D26: 2401.4 | E26: 25 | F26: 25
C27: 1 | D27: 2429.1 | E27: 25 | H27: 2
A28: 09.02.01 | B28: Компьютерные сети и комплексы | C28: 1 | D28: 2429.2 | E28: 30
C29: 2 | D29: 23Т1 | E29: 25 | G29: 23
C30: 2 | D30: 23Т2 | E30: 25
C31: 2 | D31: 23Т3 | E31: 26 | G31: 1
C32: 2 | D32: 23Д | E32: 20
A33: 09.02.07 | B33: Информационные системы/Информационные системы и программирования | C33: 2 | D33: 23ПО1 | E33: 25
C34: 2 | D34: 23ПО2 | E34: 25
C35: 2 | D35: 23К | E35: 25
C36: 2 | D36: 23И1 | E36: 25
C37: 2 | D37: 23И2 | E37: 21
C38: 2 | D38: 23А1 | E38: 25 | F38: 21
C39: 2 | D39: 23А2 | E39: 24
C40: 2 | D40: 2310 | E40: 25
C41: 2 | D41: 2332.1 | E41: 25 | F41: 8 | G41: 2 | H41: 5
A42: 15.02.07 | B42: Автоматизация технологических процессов и производств/Оснащение средствами автоматизации | C42: 2 | D42: 2332.2 | E42: 25 | F42: 9 | H42: 15
C43: 2 | D43: 2335 | E43: 24 | F43: 12 | G43: 1 | H43: 1
C44: 2 | D44: 2305 | E44: 25 | H44: 1
C45: 2 | D45: 2301.1 | E45: 25 | F45: 22
C46: 2 | D46: 2301.2 | E46: 24 | F46: 17 | H46: 2
C47: 2 | D47: 2301.3 | E47: 25 | F47: 12
A48: 38.02.01 | B48: Экономика и бухгалтерский учет | C48: 2 | D48: 2303 | E48: 28
A49: 46.02.01 | B49: Документационное обеспечение управления и архивоведение | C49: 2 | D49: 2329 | E49: 25 | F49: 1 | H49: 3
A50: 13.01.10 | B50: Электромонтёр по ремонту и обслуживанию электрооборудования | C50: 3 | D50: 22Т1 | E50: 24 | F50: 22 | G50: 2
C51: 3 | D51: 22Т2 | E51: 24 | F51: 22 | G51: 1
C52: 3 | D52: 22Т3 | E52: 24 | F52: 15 | G52: 1
A53: 15.01.32 | B53: Оператор станков с программным управлением | C53: 3 | D53: 22Д | E53: 22 | H53: 1
C54: 3 | D54: 22ПО1 | E54: 25 | F54: 9
C55: 3 | D55: 22ПО2 | E55: 25 | F55: 11 | G55: 6
C56: 3 | D56: 22К | E56: 19
C57: 3 | D57: 22И1 | E57: 25
C58: 3 | D58: 22И2 | E58: 24
A59: 15.01.35 | B59: Мастер слесарных работ | C59: 3 | D59: 22И3 | E59: 25
C60: 3 | D60: 22А | E60: 21 | F60: 17 | G60: 1
C61: 3 | D61: 22Э | E61: 21
A62: 15.01.05 | B62: Сварщик (ручной и частично маханизированной сварки (наплавки)) | C62: 3 | D62: 22ДОУ | E62: 22
C63: 3 | D63: 2210 | E63: 23
C64: 3 | D64: 2232 | E64: 25 | H64: 23
A65: 24.01.01 | B65: Слесарь-сборщик авиационной техники | C65: 3 | D65: 2235 | E65: 24 | F65: 7 | G65: 6 | H65: 9
C66: 3 | D66: 2205 | E66: 23 | F66: 1
C67: 3 | D67: 2201 | E67: 22 | F67: 4
C68: 3 | D68: 2203 | E68: 25
C69: 3 | D69: 2202 | E69: 22
C70: 3 | D70: 2229 | E70: 25 | F70: 2 | G70: 9
C71: 4 | D71: 21Т1 | E71: 26 | G71: 20
C72: 4 | D72: 21Т2 | E72: 23 | F72: 2 | G72: 1
C73: 4 | D73: 21Д | E73: 21
C74: 4 | D74: 21ПО | E74: 18 | F74: 2
A75: 09.01.03 | B75: Мастер по обработке цифровой информации | C75: 4 | D75: 21Л | E75: 24 | G75: 24
C76: 4 | D76: 21К | E76: 22
A77: 24.01.02 | B77: Электромонтажник авиационной техники | C77: 4 | D77: 21И1 | E77: 25
C78: 4 | D78: 21И2 | E78: 19
A79: 15.01.02 | B79: Контролер качества в машиностроении | C79: 4 | D79: 21А | E79: 21 | F79: 13
C80: 4 | D80: 2101.1 | E80: 22 | F80: 1
C81: 4 | D81: 2101.2 | E81: 18
C82: 4 | D82: 2102 | E82: 25
D83: Итого | E83: =SUM(E5:E82) -> 1876 | F83: =SUM(F5:F82) -> 320 | G83: =SUM(G5:G82) -> 98 | H83: =SUM(H5:H82) -> 86

Sheet Лист1 (2)
A1: ЦЕЛЕВЫЕ ГРУППЫ на 27.11.2024
A3: Код специальности (профессии) | B3: Наименование специальности (профессии) | C3: Курс | D3: Группа | E3: Кол-во | F3: КАЗ | G3: КВЗ | H3: КМПО
A4: 15.02.16 | B4: Технология машиностроения | C4: 1 | D4: 24Т1 | E4: 25 | F4: 24
D5: 24Т2 | E5: 25 | F5: 23
D6: 24Т3 | E6: 30 | F6: 17
A7: 24.02.02 | B7: Производство авиационных двигателей | C7: 1 | D7: 24Д | E7: 23 | H7: 21
A8: 24.02.01 | B8: Производство летательных аппаратов | C8: 1 | D8: 24Л1 | E8: 25 | F8: 16
D9: 24Л2 | E9: 26 | F9: 1 | G9: 18
A10: 09.02.01 | B10: Компьютерные сети и комплексы | C10: 1 | D10: 24К1 | E10: 25 | F10: 1
D11: 24К2 | E11: 26
A12: 09.02.07 | B12: Информационные системы и программирование | C12: 1 | D12: 24И1 | E12: 25
D13: 24И2 | E13: 24
A14: 15.02.14 | B14: Оснащение средствами автоматизации | C14: 1 | D14: 24А1 | E14: 25 | F14: 14
D15: 24А2 | E15: 28 | G15: 21
A16: Итого 1 курс СПО: | E16: =SUM(E4:E15) -> 307 | F16: =SUM(F4:F15) -> 96 | G16: 39 | H16: 21
F17: =SUM(F16:H16) -> 156
A18: 13.01.10 | B18: Электромонтёр по ремонту и обслуживанию электрооборудования | C18: 1 | D18: 2410 | E18: 25 | F18: 1 | H18: 13
A19: 15.01.32 | B19: Оператор станков с программным управлением | C19: 1 | D19: 2432.1 | E19: 30 | F19: 18
D20: 2432.2 | E20: 30 | F20: 4 | H20: 5
D21: 2432.3 | E21: 30 | F21: 30
A22: 15.01.35 | B22: Мастер слесарных работ | C22: 1 | D22: 2435 | E22: 25 | G22: 23
A23: 15.01.05 | B23: Сварщик (ручной и частично маханизированной сварки (наплавки)) | C23: 1 | D23: 2405 | E23: 25
A24: 24.01.01 | B24: Слесарь-сборщик авиационной техники | C24: 1 | D24: 2401.1 | E24: 26 | F24: 12 | H24: 1
D25: 2401.2 | E25: 25 | F25: 9
D26: 2401.3 | E26: 25 | F26: 25
D27: 2401.4 | E27: 25 | F27: 25
A28: 15.01.02 | B28: Контролер качества в машиностроении | C28: 1 | D28: 2429.1 | E28: 25 | F28: 3 | G28: 6 | H28: 2
D29: 2429.2 | E29: 30 | F29: 2 | G29: 5
A30: Итого 1 курс НПО: | E30: =SUM(E18:E29) -> 321 | F30: =SUM(F18:F29) -> 129 | G30: 34 | H30: 21
F31: =SUM(F30:H30) -> 184
A32: Итого 1 курс общее: | E32: =E30+E16 -> 628 | F32: =F30+F16 -> 225 | G32: =G30+G16 -> 73 | H32: 42
F33: =SUM(F32:H32) -> 340
A34: 15.02.16 | B34: Технология машиностроения | C34: 2 | D34: 23Т1 | E34: 25 | F34: 20
D35: 23Т2 | E35: 25 | G35: 22
D36: 23Т3 | E36: 26 | F36: 13 | G36: 3
A37: 24.02.02 | B37: Производство авиационных двигателей | C37: 2 | D37: 23Д | E37: 20 | H37: 3
A38: 25.02.06 | B38: Производство и обслуживание авиационной техники | C38: 2 | D38: 23ПО1 | E38: 25 | F38: 21
D39: 23ПО2 | E39: 25 | F39: 13
A40: 09.02.01 | B40: Компьютерные сети и комплексы | C40: 2 | D40: 23К | E40: 23
A41: 09.02.07 | B41: Информационные системы и программирование | C41: 2 | D41: 23И1 | E41: 24
D42: 23И2 | E42: 20
A43: 15.02.07 | B43: Автоматизация технологических процессов и производств/Оснащение средствами автоматизации | C43: 2 | D43: 23А1 | E43: 25 | F43: 22
D44: 23А2 | E44: 24 | G44: 19
A45: Итого 2 курс СПО: | E45: =SUM(E34:E44) -> 262 | F45: =SUM(F34:F44) -> 89 | G45: 44 | H45: 3
F46: =SUM(F45:H45) -> 136
A47: 13.01.10 | B47: Электромонтёр по ремонту и обслуживанию электрооборудования | C47: 2 | D47: 2310 | E47: 25
A48: 15.01.32 | B48: Оператор станков с программным управлением | C48: 2 | D48: 2332.1 | E48: 25 | F48: 11 | G48: 2 | H48: 5
D49: 2332.2 | E49: 25 | F49: 7 | H49: 15
A50: 15.01.35 | B50: Мастер слесарных работ | C50: 2 | D50: 2335 | E50: 25 | F50: 8 | G50: 1 | H50: 1
A51: 15.01.05 | B51: Сварщик (ручной и частично маханизированной сварки (наплавки)) | C51: 2 | D51: 2305 | E51: 25 | H51: 1
A52: 24.01.01 | B52: Слесарь-сборщик авиационной техники | C52: 2 | D52: 2301.1 | E52: 25 | F52: 22
D53: 2301.2 | E53: 25 | F53: 17 | H53: 2
D54: 2301.3 | E54: 25 | F54: 14
A55: 09.01.03 | B55: Оператор информационных систем и ресурсов | C55: 2 | D55: 2303 | E55: 25
A56: 15.01.02 | B56: Контролер качества в машиностроении | C56: 2 | D56: 2329 | E56: 25 | F56: 1 | H56: 3
B57: Штукатур | C57: 2 | D57: 23Ш | E57: 10
A58: Итого 2 курс НПО: | E58: =SUM(E47:E57) -> 260 | F58: =SUM(F47:F56) -> 80 | G58: =SUM(G47:G56) -> 3 | H58: =SUM(H47:H56) -> 27
F59: =SUM(F58:H58) -> 110
A60: Итого 2 курс общее: | E60: =E58+E45 -> 522 | F60: =F58+F45 -> 169 | G60: =G58+G45 -> 47 | H60: =H58+H45 -> 30
F61: =SUM(F60:H60) -> 246
A62: 15.02.08 | B62: Технология машиностроения | C62: 3 | D62: 22Т1 | E62: 25 | F62: 22 | G62: 2
D63: 22Т2 | E63: 24 | F63: 22 | G63: 1
D64: 22Т3 | E64: 24 | F64: 15 | G64: 1
A65: 24.02.02 | B65: Производство авиационных двигателей | C65: 3 | D65: 22Д | E65: 22 | H65: 1
A66: 25.02.06 | B66: Производство и обслуживание авиационной техники | C66: 3 | D66: 22ПО1 | E66: 24 | F66: 9
D67: 22ПО2 | E67: 25 | F67: 11 | G67: 6
A68: 09.02.01 | B68: Компьютерные сети и комплексы | C68: 3 | D68: 22К | E68: 18
A69: 09.02.07 | B69: Информационные системы и программирование | C69: 3 | D69: 22И1 | E69: 25
D70: 22И2 | E70: 24
D71: 22И3 | E71: 22
A72: 15.02.07 | B72: Автоматизация технологических процессов и производств/Оснащение средствами автоматизации | C72: 3 | D72: 22А | E72: 20 | F72: 17 | G72: 1
A73: 38.02.01 | B73: Экономика и бухгалтерский учет | C73: 3 | D73: 22Э | E73: 21
A74: 46.02.01 | B74: Документационное обеспечение управления и архивоведение | C74: 3 | D74: 22ДОУ | E74: 22
A75: Итого 3 курс СПО: | E75: =SUM(E62:E74) -> 296 | F75: =SUM(F62:F74) -> 96 | G75: 11 | H75: 1
F76: =SUM(F75:H75) -> 108
A77: 13.01.10 | B77: Электромонтёр по ремонту и обслуживанию электрооборудования | C77: 3 | D77: 2210 | E77: 23
A78: 15.01.32 | B78: Оператор станков с программным управлением | C78: 3 | D78: 2232 | E78: 25 | H78: 23
A79: 15.01.35 | B79: Мастер слесарных работ | C79: 3 | D79: 2235 | E79: 24 | F79: 7 | G79: 6 | H79: 9
A80: 15.01.05 | B80: Сварщик (ручной и частично маханизированной сварки (наплавки)) | C80: 3 | D80: 2205 | E80: 23 | F80: 1
A81: 24.01.01 | B81: Слесарь-сборщик авиационной техники | C81: 3 | D81: 2201 | E81: 22 | F81: 2
A82: 09.01.03 | B82: Мастер по обработке цифровой информации | C82: 3 | D82: 2203 | E82: 26
A83: 24.01.02 | B83: Электромонтажник авиационной техники | C83: 3 | D83: 2202 | E83: 22
A84: 15.01.02 | B84: Контролер качества в машиностроении | C84: 3 | D84: 2229 | E84: 25 | F84: 2 | G84: 9
A85: 35.01.11 /27 (23г) | B85: Мастер сельскохозяйственного производства | C85: 3 | D85: 2211 | E85: 20
A86: Итого 3 курс НПО: | E86: =SUM(E77:E85) -> 210 | F86: =SUM(F77:F84) -> 12 | G86: 15 | H86: 32
F87: =SUM(F86:H86) -> 59
A88: Итого 3 курс общее: | E88: =E86+E75 -> 506 | F88: =F86+F75 -> 108 | G88: 26 | H88: 33
F89: =SUM(F88:H88) -> 167
A90: 15.02.08 | B90: Технология машиностроения | C90: 4 | D90: 21Т1 | E90: 26 | G90: 20
D91: 21Т2 | E91: 23 | F91: 2 | G91: 1
A92: 24.02.02 | B92: Производство авиационных двигателей | C92: 4 | D92: 21Д | E92: 21
A93: 25.02.06 | B93: Производство и обслуживание авиационной техники | C93: 4 | D93: 21ПО | E93: 18 | F93: 2
A94: 24.02.02 | B94: Производство летательных аппаратов | C94: 4 | D94: 21Л | E94: 24 | G94: 24
A95: 09.02.01 | B95: Компьютерные сети и комплексы | C95: 4 | D95: 21К | E95: 22
A96: 09.02.07 | B96: Информационные системы и программирование | C96: 4 | D96: 21И1 | E96: 24
D97: 21И2 | E97: 18
A98: 15.02.07 | B98: Автоматизация технологических процессов и производств/Оснащение средствами автоматизации | C98: 4 | D98: 21А | E98: 21 | F98: 11
A99: Итого 4 курс СПО: | E99: =SUM(E90:E98) -> 197 | F99: =SUM(F90:F98) -> 15 | G99: 45 | H99: 0
F100: =SUM(F99:H99) -> 60
A101: 24.01.01 | B101: Слесарь-сборщик авиационной техники | C101: 4 | D101: 2101.1 | E101: 22 | F101: 1
D102: 2101.2 | E102: 18
A103: 24.01.02 | B103: Электромонтажник авиационной техники | C103: 4 | D103: 2102 | E103: 25
A104: 35.01.11 /27 (23г) | B104: Мастер сельскохозяйственного производства | C104: 4 | D104: 2111 | E104: 21
A105: Итого 4 курс НПО: | E105: =SUM(E101:E104) -> 86 | F105: =SUM(F101:F103) -> 1 | G105: 0 | H105: 0
F106: =SUM(F105:H105) -> 1
A107: Итого 4 курс общее: | E107: =E105+E99 -> 283 | F107: =F105+F99 -> 16 | G107: 45 | H107: 0
F108: =SUM(F107:H107) -> 61
D109: Итого | E109: =E107+E88+E60+E32 -> 1939 | F109: =F107+F88+F60+F32 -> 518 | G109: =G107+G88+G60+G32 -> 191 | H109: =H107+H88+H60+H32 -> 105
F110: =SUM(F109:H109) -> 814
